fUST/lending_fUST_20250302
["ID","MTS","AMOUNT","RATE_DAILY","PERIOD"]
[355096895,1740891060003,-7112.25,0.00024735,2]
[355096896,1740891060013,-5667.16,0.00024735,2]
[355096897,1740891060024,-3514.94,0.00024735,2]
[355096898,1740891060035,-500.0,0.00024736,2]
[355096899,1740891060045,-500.0,0.00024736,2]
[355096900,1740891060056,-533.76,0.00024736,2]
[355096901,1740891060067,-500.0,0.00024736,2]
[355096902,1740891060077,-753.47,0.00024736,2]
[355096903,1740891060086,-319.27,0.00024736,2]
[355096904,1740891060097,-250.0,0.00024736,2]
[355096905,1740891060107,-1154.3,0.00024737,2]
[355096906,1740891060118,-500.0,0.00024737,2]
[355096907,1740891060127,-2973.81,0.00024737,2]
[355096908,1740891060138,-914.1,0.00024737,2]
[355096909,1740891060148,-505.03,0.00024737,2]
[355096910,1740891060158,-1772.49,0.00024737,2]
[355096911,1740891060167,-682.1,0.00024737,2]
[355096912,1740891060178,-3795.35,0.00024737,2]
[355096913,1740891060189,-543.9,0.00024737,2]
[355096914,1740891060199,-5730.46,0.00024737,2]
[355096915,1740891060209,-4535.27,0.00024737,2]
[355096916,1740891060220,-500.0,0.00024737,2]
[355096917,1740891060230,-500.0,0.00024737,2]
[355096918,1740891060240,-1236.92,0.00024737,2]
[355096919,1740891060249,-1887.83,0.00024737,2]
[355096920,1740891060259,-713.67,0.00024737,2]
[355096921,1740891060269,-500.0,0.00024737,2]
[355096922,1740891060279,-1282.57,0.00024737,2]
[355096923,1740891060290,-500.0,0.00024737,2]
[355096924,1740891060300,-2373.21,0.00024737,2]
[355096925,1740891060310,-6974.83,0.00024737,2]
[355096926,1740891060320,-706.65,0.00024737,2]
[355096927,1740891060331,-904.54,0.00024737,2]
[355096928,1740891060341,-598.51,0.00024737,2]
[355096929,1740891060352,-2161.29,0.00024737,2]
[355096930,1740891060363,-500.0,0.00024739,2]
[355096931,1740891060373,-500.0,0.00024739,2]
[355096932,1740891060383,-500.0,0.00024739,2]
[355096933,1740891060394,-724.09,0.00024739,2]
[355096934,1740891060404,-500.0,0.00024739,2]
[355096935,1740891060414,-730.08,0.00024739,2]
[355096936,1740891060424,-500.0,0.00024739,2]
[355096937,1740891060435,-944.38,0.00024739,2]
[355096938,1740891060445,-570.76,0.00024739,2]
[355096939,1740891060455,-500.0,0.00024739,2]
[355096940,1740891060465,-500.0,0.00024739,2]
[355096941,1740891060475,-503.03,0.00024739,2]
[355096942,1740891060485,-995.77,0.00024739,2]
[355096943,1740891060496,-500.0,0.00024739,2]
[355096944,1740891060506,-574.97,0.00024739,2]
[355096945,1740891060516,-500.0,0.00024739,2]
[355096946,1740891060526,-500.0,0.00024739,2]
[355096947,1740891060537,-500.0,0.00024739,2]
[355096948,1740891060546,-921.28,0.00024739,2]
[355096949,1740891060556,-500.0,0.00024739,2]
[355096950,1740891060566,-503.65,0.00024739,2]
[355096951,1740891060576,-500.0,0.00024739,2]
[355096952,1740891060586,-419.77,0.00024739,2]
[355096953,1740891060595,-690.0,0.00024739,2]
[355096954,1740891060606,-500.0,0.00024739,2]
[355096955,1740891060616,-151.0,0.00024739,7]
[355096956,1740891060626,-586.41,0.00024739,2]
[355096957,1740891060636,-151.0,0.00024739,7]
[355096958,1740891060646,-1564.87,0.00024739,2]
[355096959,1740891060656,-1548.28,0.00024739,2]
[355096960,1740891060667,-636.65,0.00024739,2]
[355096961,1740891060676,-151.0,0.00024739,7]
[355096962,1740891060687,-80347.49,0.00024739,2]
[355096963,1740891060698,-500.0,0.00024739,2]
[355096964,1740891060711,-1814.59,0.00024739,2]
[355096965,1740891060722,-431.32,0.00024739,2]
[355096966,1740891060732,-983.66,0.00024739,2]
[355096967,1740891060743,-2298.01,0.00024739,2]
[355096968,1740891060754,-500.0,0.00024739,2]
[355096969,1740891060764,-501.13,0.00024739,2]
[355096970,1740891060774,-500.0,0.00024739,2]
[355096971,1740891060785,-568.53,0.00024739,2]
[355096972,1740891060796,-675.58,0.00024739,2]
[355096973,1740891060806,-500.0,0.00024739,2]
[355096974,1740891060816,-500.0,0.00024739,2]
[355096975,1740891060827,-500.0,0.00024739,2]
[355096976,1740891060836,-500.0,0.00024739,2]
[355096977,1740891060846,-526.4,0.00024739,2]
[355096978,1740891060856,-1404.94,0.00024739,2]
[355096979,1740891060867,-913.28,0.00024739,2]
[355096980,1740891060876,-500.0,0.00024739,2]
[355096981,1740891060887,-1435.15,0.00024739,2]
[355096982,1740891060896,-500.0,0.00024948,2]
[355096983,1740891060907,-500.0,0.00024948,2]
[355096984,1740891060917,-517.22,0.00024948,2]
[355096985,1740891060927,-500.0,0.00024948,2]
[355096986,1740891060938,-500.0,0.00024948,2]
[355096987,1740891060948,-500.0,0.00024948,2]
[355096988,1740891060959,-500.0,0.00024948,2]
[355096989,1740891060969,-500.0,0.00024948,2]
[355096990,1740891060979,-500.0,0.00024948,2]
[355096991,1740891060989,-500.0,0.00024948,2]
[355096992,1740891060999,-500.0,0.00024948,2]
[355096993,1740891061009,-685.0,0.00024948,2]
[355096994,1740891061020,-500.0,0.00024948,2]
[355096995,1740891061031,-500.0,0.00024948,2]
[355096996,1740891061040,-1756.49,0.00024948,2]
[355096997,1740891061051,-500.0,0.00024948,2]
[355096998,1740891061061,-500.0,0.00024948,2]
[355096999,1740891061071,-500.0,0.00024948,2]
[355097000,1740891061081,-500.0,0.00024948,2]
[355097001,1740891061091,-500.0,0.00024948,2]
[355097002,1740891061102,-500.0,0.00024948,2]
[355097003,1740891061112,-500.0,0.00024948,2]
[355097004,1740891061123,-566.7,0.00024948,2]
[355097005,1740891061133,-500.0,0.00024948,2]
[355097006,1740891061144,-500.0,0.00024948,2]
[355097007,1740891061155,-500.0,0.00024948,2]
[355097008,1740891061165,-500.0,0.00024948,2]
[355097009,1740891061175,-500.0,0.00024948,2]
[355097010,1740891061185,-500.0,0.00024948,2]
[355097011,1740891061196,-30000.0,0.00025,10]
[355097012,1740891061207,-30000.0,0.00025,10]
[355097013,1740891061217,-23018.3231536,0.00025,10]
[355097014,1740891061227,-4740.01,0.00025,2]
[355097015,1740891061237,-291.36,0.00025,7]
[355097016,1740891061248,-151.0,0.00025,7]
[355097017,1740891061258,-151.0,0.00025,7]
[355097018,1740891061269,-151.0,0.00025,7]
[355097019,1740891061280,-160.0,0.00025,30]
[355097020,1740891061291,-160.0,0.00025,10]
[355097021,1740891061301,-19629.85965445,0.00025,10]
[355097022,1740891061312,-3815.13,0.00025009,2]
[355097023,1740891061323,-2139.17,0.00025009,2]
[355097024,1740891061333,-670.21,0.00025009,2]
[355097025,1740891061343,-500.0,0.00025009,2]
[355097026,1740891061354,-159.90189267,0.00025009,2]
[355097027,1740891061365,-594.37,0.00025009,2]
[355097028,1740891061375,-3134.93,0.00025009,2]
[355097029,1740891061385,-500.0,0.00025009,2]
[355097030,1740891061396,-767.93,0.00025009,2]
[355097031,1740891061406,-7112.25,0.00025009,2]
[355097032,1740891061417,-5667.16,0.00025009,2]
[355097033,1740891061427,-3514.94,0.00025009,2]
[355097034,1740891061438,-500.0,0.0002501,2]
[355097035,1740891061448,-540.74,0.0002501,2]
[355097036,1740891061460,-533.76,0.0002501,2]
[355097037,1740891061471,-500.0,0.0002501,2]
[355097038,1740891061482,-753.47,0.0002501,2]
[355097039,1740891061492,-250.0,0.0002501,2]
[355097040,1740891061509,-1154.3,0.00025011,2]
[355097041,1740891061520,-177.37,0.00025011,2]
[355097042,1740891061531,-2973.81,0.00025011,2]
[355097043,1740891061542,-914.1,0.00025011,2]
[355097044,1740891061552,-505.03,0.00025011,2]
[355097045,1740891061563,-1772.49,0.00025011,2]
[355097046,1740891061575,-682.1,0.00025011,2]
[355097047,1740891061585,-3795.35,0.00025011,2]
[355097048,1740891061596,-543.9,0.00025011,2]
[355097049,1740891061613,-5730.46,0.00025011,2]
[355097050,1740891061625,-4535.27,0.00025011,2]
[355097051,1740891061637,-500.0,0.00025011,2]
[355097052,1740891061877,-500.0,0.00025011,2]
[355097053,1740891061887,-1236.92,0.00025011,2]
[355097054,1740891061898,-1887.83,0.00025011,2]
[355097055,1740891061908,-713.67,0.00025011,2]
[355097056,1740891061919,-500.0,0.00025011,2]
[355097057,1740891061928,-1282.57,0.00025011,2]
[355097058,1740891061938,-500.0,0.00025011,2]
[355097059,1740891061949,-2373.21,0.00025011,2]
[355097060,1740891061958,-6974.83,0.00025011,2]
[355097061,1740891061969,-706.65,0.00025011,2]
[355097062,1740891061980,-904.54,0.00025011,2]
[355097063,1740891061990,-598.51,0.00025011,2]
[355097064,1740891062000,-2161.29,0.00025011,2]
[355097065,1740891062009,-583.22692393,0.00025013,2]
[355097066,1740891062019,-500.0,0.00025013,2]
[355097067,1740891062028,-526.71,0.00025013,2]
[355097068,1740891062045,-724.09,0.00025013,2]
[355097069,1740891062056,-341.7,0.00025013,2]
[355097070,1740891062066,-730.08,0.00025013,2]
[355097071,1740891062077,-500.0,0.00025013,2]
[355097072,1740891062087,-944.38,0.00025013,2]
[355097073,1740891062097,-570.76,0.00025013,2]
[355097074,1740891062106,-500.0,0.00025013,2]
[355097075,1740891062117,-500.0,0.00025013,2]
[355097076,1740891062127,-503.03,0.00025013,2]
[355097077,1740891062137,-995.77,0.00025013,2]
[355097078,1740891062147,-500.0,0.00025013,2]
[355097079,1740891062157,-574.97,0.00025013,2]
[355097080,1740891062167,-500.0,0.00025013,2]
[355097081,1740891062177,-500.0,0.00025013,2]
[355097082,1740891062187,-500.0,0.00025013,2]
[355097083,1740891062197,-921.28,0.00025013,2]
[355097084,1740891062206,-500.0,0.00025013,2]
[355097085,1740891062216,-500.0,0.00025013,2]
[355097086,1740891062226,-690.0,0.00025013,2]
[355097087,1740891062236,-500.0,0.00025013,2]
[355097088,1740891062246,-586.41,0.00025013,2]
[355097089,1740891062256,-1564.87,0.00025013,2]
[355097090,1740891062265,-1548.28,0.00025013,2]
[355097091,1740891062275,-636.65,0.00025013,2]
[355097092,1740891062285,-80347.49,0.00025013,2]
[355097093,1740891062295,-500.0,0.00025013,2]
[355097094,1740891062305,-1814.59,0.00025013,2]
[355097095,1740891062315,-983.66,0.00025013,2]
[355097096,1740891062325,-2298.01,0.00025013,2]
[355097097,1740891062334,-500.0,0.00025013,2]
[355097098,1740891062344,-151.0,0.00025013,7]
[355097099,1740891062354,-500.0,0.00025013,2]
[355097100,1740891062363,-568.53,0.00025013,2]
[355097101,1740891062373,-675.58,0.00025013,2]
[355097102,1740891062383,-500.0,0.00025013,2]
[355097103,1740891062393,-500.0,0.00025013,2]
[355097104,1740891062403,-500.0,0.00025013,2]
[355097105,1740891062412,-500.0,0.00025013,2]
[355097106,1740891062423,-1404.94,0.00025013,2]
[355097107,1740891062433,-913.28,0.00025013,2]
[355097108,1740891062443,-500.0,0.00025013,2]
[355097109,1740891062453,-1435.15,0.00025013,2]
[355097110,1740891062463,-592.1,0.00025222,2]
[355097111,1740891062473,-500.0,0.00025222,2]
[355097112,1740891062483,-517.22,0.00025222,2]
[355097113,1740891062493,-500.0,0.00025222,2]
[355097114,1740891062502,-500.0,0.00025222,2]
[355097115,1740891062512,-447.88,0.00025222,2]
[355097116,1740891062523,-500.0,0.00025222,2]
[355097117,1740891062532,-500.0,0.00025222,2]
[355097118,1740891062542,-500.0,0.00025222,2]
[355097119,1740891062551,-500.0,0.00025222,2]
[355097120,1740891062560,-500.0,0.00025222,2]
[355097121,1740891062570,-685.0,0.00025222,2]
[355097122,1740891062581,-165.37,0.00025222,2]
[355097123,1740891062591,-500.0,0.00025222,2]
[355097124,1740891062600,-1756.49,0.00025222,2]
[355097125,1740891062610,-500.0,0.00025222,2]
[355097126,1740891062620,-500.0,0.00025222,2]
[355097127,1740891062630,-500.0,0.00025222,2]
[355097128,1740891062640,-500.0,0.00025222,2]
[355097129,1740891062650,-500.0,0.00025222,2]
[355097130,1740891062660,-500.0,0.00025222,2]
[355097131,1740891062670,-496.07,0.00025222,2]
[355097132,1740891062680,-566.7,0.00025222,2]
[355097133,1740891062690,-500.0,0.00025222,2]
[355097134,1740891062700,-500.0,0.00025222,2]
[355097135,1740891062714,-621.45,0.00025222,2]
[355097136,1740891062724,-500.0,0.00025222,2]
[355097137,1740891062733,-332.85,0.00025222,2]
[355097138,1740891062743,-500.0,0.00025222,2]
[355097139,1740891062755,-3815.13,0.00025283,2]
[355097140,1740891062765,-2139.17,0.00025283,2]
[355097141,1740891062775,-670.21,0.00025283,2]
[355097142,1740891062785,-500.0,0.00025283,2]
[355097143,1740891062796,-594.37,0.00025283,2]
[355097144,1740891062805,-3134.93,0.00025283,2]
[355097145,1740891062815,-500.0,0.00025283,2]
[355097146,1740891062832,-767.93,0.00025283,2]
[355097147,1740891062847,-7112.25,0.00025283,2]
[355097148,1740891062857,-5667.16,0.00025283,2]
[355097149,1740891062867,-3514.94,0.00025283,2]
[355097150,1740891062877,-500.0,0.00025284,2]
[355097151,1740891062887,-533.76,0.00025284,2]
[355097152,1740891062897,-250.78,0.00025284,2]
[355097153,1740891062907,-753.47,0.00025284,2]
[355097154,1740891062917,-232.66,0.00025284,2]
[355097155,1740891062927,-1154.3,0.00025285,2]
[355097156,1740891062937,-2973.81,0.00025285,2]
[355097157,1740891062946,-914.1,0.00025285,2]
[355097158,1740891062956,-505.03,0.00025285,2]
[355097159,1740891062966,-1772.49,0.00025285,2]
[355097160,1740891062976,-682.1,0.00025285,2]
[355097161,1740891062986,-3795.35,0.00025285,2]
[355097162,1740891062996,-543.9,0.00025285,2]
[355097163,1740891063006,-5730.46,0.00025285,2]
[355097164,1740891063016,-4535.27,0.00025285,2]
[355097165,1740891063027,-500.0,0.00025285,2]
[355097166,1740891063037,-500.0,0.00025285,2]
[355097167,1740891063046,-1236.92,0.00025285,2]
[355097168,1740891063056,-1887.83,0.00025285,2]
[355097169,1740891063066,-713.67,0.00025285,2]
[355097170,1740891063076,-500.0,0.00025285,2]
[355097171,1740891063085,-1282.57,0.00025285,2]
[355097172,1740891063105,-342.1,0.00025285,2]
[355097173,1740891063121,-2373.21,0.00025285,2]
[355097174,1740891063132,-6974.83,0.00025285,2]
[355097175,1740891063142,-706.65,0.00025285,2]
[355097176,1740891063153,-904.54,0.00025285,2]
[355097177,1740891063164,-598.51,0.00025285,2]
[355097178,1740891063175,-2161.29,0.00025285,2]
[355097179,1740891063185,-500.0,0.00025287,2]
[355097180,1740891063196,-724.09,0.00025287,2]
[355097181,1740891063206,-730.08,0.00025287,2]
[355097182,1740891063217,-500.0,0.00025287,2]
[355097183,1740891063227,-944.38,0.00025287,2]
[355097184,1740891063238,-570.76,0.00025287,2]
[355097185,1740891063249,-539.4,0.00025287,2]
[355097186,1740891063259,-500.0,0.00025287,2]
[355097187,1740891063269,-503.03,0.00025287,2]
[355097188,1740891063279,-995.77,0.00025287,2]
[355097189,1740891063290,-500.0,0.00025287,2]
[355097190,1740891063301,-574.97,0.00025287,2]
[355097191,1740891063311,-500.0,0.00025287,2]
[355097192,1740891063322,-500.0,0.00025287,2]
[355097193,1740891063332,-500.0,0.00025287,2]
[355097194,1740891063343,-921.28,0.00025287,2]
[355097195,1740891063353,-500.0,0.00025287,2]
[355097196,1740891063363,-500.0,0.00025287,2]
[355097197,1740891063374,-690.0,0.00025287,2]
[355097198,1740891063385,-500.0,0.00025287,2]
[355097199,1740891063395,-586.41,0.00025287,2]
[355097200,1740891063405,-1564.87,0.00025287,2]
[355097201,1740891063415,-1548.28,0.00025287,2]
[355097202,1740891063426,-636.65,0.00025287,2]
[355097203,1740891063437,-80347.49,0.00025287,2]
[355097204,1740891063447,-500.0,0.00025287,2]
[355097205,1740891063457,-1814.59,0.00025287,2]
[355097206,1740891063468,-983.66,0.00025287,2]
[355097207,1740891063479,-2298.01,0.00025287,2]
[355097208,1740891063490,-500.0,0.00025287,2]
[355097209,1740891063500,-500.0,0.00025287,2]
[355097210,1740891063511,-568.53,0.00025287,2]
[355097211,1740891063521,-675.58,0.00025287,2]
[355097212,1740891063532,-500.0,0.00025287,2]
[355097213,1740891063543,-516.64,0.00025287,2]
[355097214,1740891063553,-500.0,0.00025287,2]
[355097215,1740891063564,-500.0,0.00025287,2]
[355097216,1740891063574,-1404.94,0.00025287,2]
[355097217,1740891063585,-913.28,0.00025287,2]
[355097218,1740891063595,-500.0,0.00025287,2]
[355097219,1740891063606,-1435.15,0.00025287,2]
[355097220,1740891063616,-151.0,0.00025395,7]
[355097221,1740891063626,-242.096431,0.00025395,7]
[355097222,1740891063636,-151.0,0.00025395,7]
[355097223,1740891063645,-151.0,0.00025395,7]
[355097224,1740891063655,-346.612221,0.00025395,7]
[355097225,1740891063666,-346.612221,0.00025395,7]
[355097226,1740891063676,-19629.85965445,0.00025421,2]
[355097227,1740891063686,-160.0,0.00025421,2]
[355097228,1740891063697,-160.0,0.00025421,2]
[355097229,1740891063711,-500.0,0.00025496,2]
[355097230,1740891063727,-517.22,0.00025496,2]
[355097231,1740891063738,-500.0,0.00025496,2]
[355097232,1740891063748,-500.0,0.00025496,2]
[355097233,1740891063760,-500.0,0.00025496,2]
[355097234,1740891063771,-500.0,0.00025496,2]
[355097235,1740891063781,-500.0,0.00025496,2]
[355097236,1740891063794,-500.0,0.00025496,2]
[355097237,1740891063805,-500.0,0.00025496,2]
[355097238,1740891063815,-685.0,0.00025496,2]
[355097239,1740891063825,-500.0,0.00025496,2]
[355097240,1740891063835,-1756.49,0.00025496,2]
[355097241,1740891063853,-500.0,0.00025496,2]
[355097242,1740891063863,-500.0,0.00025496,2]
[355097243,1740891063874,-500.0,0.00025496,2]
[355097244,1740891063884,-500.0,0.00025496,2]
[355097245,1740891063895,-500.0,0.00025496,2]
[355097246,1740891063906,-500.0,0.00025496,2]
[355097247,1740891063917,-566.7,0.00025496,2]
[355097248,1740891063927,-500.0,0.00025496,2]
[355097249,1740891063938,-500.0,0.00025496,2]
[355097250,1740891063949,-500.0,0.00025496,2]
[355097251,1740891063959,-500.0,0.00025496,2]
[355097252,1740891063970,-3000.0,0.00025502,7]
[355097253,1740891063980,-19629.85965445,0.0002551,7]
[355097254,1740891063991,-160.0,0.00025539,3]
[355097255,1740891064002,-3815.13,0.00025557,2]
[355097256,1740891064013,-2139.17,0.00025557,2]
[355097257,1740891064023,-670.21,0.00025557,2]
[355097258,1740891064033,-500.0,0.00025557,2]
[355097259,1740891064044,-594.37,0.00025557,2]
[355097260,1740891064054,-3134.93,0.00025557,2]
[355097261,1740891064064,-500.0,0.00025557,2]
[355097262,1740891064074,-767.93,0.00025557,2]
[355097263,1740891064084,-7112.25,0.00025557,2]
[355097264,1740891064095,-5667.16,0.00025557,2]
[355097265,1740891064105,-3514.94,0.00025557,2]
[355097266,1740891064115,-500.0,0.00025558,2]
[355097267,1740891064125,-533.76,0.00025558,2]
[355097268,1740891064135,-753.47,0.00025558,2]
[355097269,1740891064146,-1154.3,0.00025559,2]
[355097270,1740891064156,-2973.81,0.00025559,2]
[355097271,1740891064167,-914.1,0.00025559,2]
[355097272,1740891064177,-505.03,0.00025559,2]
[355097273,1740891064188,-1772.49,0.00025559,2]
[355097274,1740891064198,-682.1,0.00025559,2]
[355097275,1740891064208,-3795.35,0.00025559,2]
[355097276,1740891064219,-543.9,0.00025559,2]
[355097277,1740891064229,-5730.46,0.00025559,2]
[355097278,1740891064239,-4535.27,0.00025559,2]
[355097279,1740891064249,-500.0,0.00025559,2]
[355097280,1740891064261,-355.05,0.00025559,2]
[355097281,1740891064270,-1236.92,0.00025559,2]
[355097282,1740891064281,-1887.83,0.00025559,2]
[355097283,1740891064291,-713.67,0.00025559,2]
[355097284,1740891064301,-500.0,0.00025559,2]
[355097285,1740891064312,-1282.57,0.00025559,2]
[355097286,1740891064322,-2373.21,0.00025559,2]
[355097287,1740891064332,-6974.83,0.00025559,2]
[355097288,1740891064343,-706.65,0.00025559,2]
[355097289,1740891064354,-904.54,0.00025559,2]
[355097290,1740891064473,-598.51,0.00025559,2]
[355097291,1740891064484,-2161.29,0.00025559,2]
[355097292,1740891064494,-500.0,0.00025561,2]
[355097293,1740891064505,-724.09,0.00025561,2]
[355097294,1740891064514,-730.08,0.00025561,2]
[355097295,1740891064524,-500.0,0.00025561,2]
[355097296,1740891064534,-944.38,0.00025561,2]
[355097297,1740891064544,-570.76,0.00025561,2]
[355097298,1740891064553,-500.0,0.00025561,2]
[355097299,1740891064563,-503.03,0.00025561,2]
[355097300,1740891064573,-995.77,0.00025561,2]
[355097301,1740891064583,-500.0,0.00025561,2]
[355097302,1740891064593,-574.97,0.00025561,2]
[355097303,1740891064603,-500.0,0.00025561,2]
[355097304,1740891064612,-500.0,0.00025561,2]
[355097305,1740891064623,-500.0,0.00025561,2]
[355097306,1740891064632,-921.28,0.00025561,2]
[355097307,1740891064643,-500.0,0.00025561,2]
[355097308,1740891064652,-431.65,0.00025561,2]
[355097309,1740891064662,-690.0,0.00025561,2]
[355097310,1740891064674,-162.25,0.00025561,2]
[355097311,1740891064691,-586.41,0.00025561,2]
[355097312,1740891064704,-1564.87,0.00025561,2]
[355097313,1740891064717,-1548.28,0.00025561,2]
[355097314,1740891064727,-636.65,0.00025561,2]
[355097315,1740891064737,-80347.49,0.00025561,2]
[355097316,1740891064748,-500.0,0.00025561,2]
[355097317,1740891064758,-1814.59,0.00025561,2]
[355097318,1740891064768,-983.66,0.00025561,2]
[355097319,1740891064779,-2298.01,0.00025561,2]
[355097320,1740891064790,-500.0,0.00025561,2]
[355097321,1740891064800,-500.0,0.00025561,2]
[355097322,1740891064811,-568.53,0.00025561,2]
[355097323,1740891064820,-675.58,0.00025561,2]
[355097324,1740891064831,-500.0,0.00025561,2]
[355097325,1740891064841,-500.0,0.00025561,2]
[355097326,1740891064851,-434.3,0.00025561,2]
[355097327,1740891064862,-1404.94,0.00025561,2]
[355097328,1740891064872,-913.28,0.00025561,2]
[355097329,1740891064882,-602.16,0.00025561,2]
[355097330,1740891064892,-1435.15,0.00025561,2]
[355097331,1740891064902,-204.04207536,0.0002565,4]
[355097332,1740891064912,-151.0,0.00025669,7]
[355097333,1740891064922,-151.0,0.00025669,7]
[355097334,1740891064932,-500.0,0.00025669,30]
[355097335,1740891064941,-500.0,0.00025669,30]
[355097336,1740891064951,-500.0,0.00025669,30]
[355097337,1740891064961,-500.0,0.00025669,30]
[355097338,1740891064972,-500.0,0.00025669,30]
[355097339,1740891064983,-500.0,0.00025669,30]
[355097340,1740891064994,-500.0,0.00025669,30]
[355097341,1740891065006,-500.0,0.00025669,30]
[355097342,1740891065017,-500.0,0.00025669,30]
[355097343,1740891065031,-500.0,0.00025669,30]
[355097344,1740891065041,-500.0,0.00025669,30]
[355097345,1740891065051,-551.036017,0.00025669,30]
[355097346,1740891065060,-151.0,0.00025669,7]
[355097347,1740891065070,-500.0,0.0002577,2]
[355097348,1740891065082,-517.22,0.0002577,2]
[355097349,1740891065092,-500.0,0.0002577,2]
[355097350,1740891065102,-500.0,0.0002577,2]
[355097351,1740891065112,-500.0,0.0002577,2]
[355097352,1740891065122,-500.0,0.0002577,2]
[355097353,1740891065132,-500.0,0.0002577,2]
[355097354,1740891065141,-500.0,0.0002577,2]
[355097355,1740891065151,-500.0,0.0002577,2]
[355097356,1740891065161,-685.0,0.0002577,2]
[355097357,1740891065172,-500.0,0.0002577,2]
[355097358,1740891065181,-1756.49,0.0002577,2]
[355097359,1740891065191,-500.0,0.0002577,2]
[355097360,1740891065201,-500.0,0.0002577,2]
[355097361,1740891065210,-500.0,0.0002577,2]
[355097362,1740891065220,-500.0,0.0002577,2]
[355097363,1740891065229,-500.0,0.0002577,2]
[355097364,1740891065240,-500.0,0.0002577,2]
[355097365,1740891065250,-566.7,0.0002577,2]
[355097366,1740891065259,-500.0,0.0002577,2]
[355097367,1740891065280,-516.49495893,0.0002577,2]
[355097368,1740891065292,-500.0,0.0002577,2]
[355097369,1740891065302,-500.0,0.0002577,2]
[355097370,1740891065312,-3815.13,0.00025831,2]
[355097371,1740891065322,-2139.17,0.00025831,2]
[355097372,1740891065332,-670.21,0.00025831,2]
[355097373,1740891065341,-500.0,0.00025831,2]
[355097374,1740891065351,-594.37,0.00025831,2]
[355097375,1740891065361,-3134.93,0.00025831,2]
[355097376,1740891065370,-569.49,0.00025831,2]
[355097377,1740891065380,-767.93,0.00025831,2]
[355097378,1740891065391,-7112.25,0.00025831,2]
[355097379,1740891065401,-5667.16,0.00025831,2]
[355097380,1740891065410,-3514.94,0.00025831,2]
[355097381,1740891065420,-273.13,0.00025832,2]
[355097382,1740891065430,-533.76,0.00025832,2]
[355097383,1740891065440,-753.47,0.00025832,2]
[355097384,1740891065449,-1154.3,0.00025833,2]
[355097385,1740891065459,-2973.81,0.00025833,2]
[355097386,1740891065469,-914.1,0.00025833,2]
[355097387,1740891065479,-505.03,0.00025833,2]
[355097388,1740891065490,-1772.49,0.00025833,2]
[355097389,1740891065499,-682.1,0.00025833,2]
[355097390,1740891065510,-3795.35,0.00025833,2]
[355097391,1740891065520,-543.9,0.00025833,2]
[355097392,1740891065530,-5730.46,0.00025833,2]
[355097393,1740891065541,-4535.27,0.00025833,2]
[355097394,1740891065551,-500.0,0.00025833,2]